[Event "DVM U14 2024"]
[Site "Heidelberg"]
[Date "2024.12.28"]
[Round "3"]
[White "Riechenberg, Sebastian"]
[Black "Han, Erdem"]
[Result "1-0"]
[ECO "E07"]
[WhiteElo "2041"]
[BlackElo "1751"]
[Annotator "RC"]
[PlyCount "99"]
[EventDate "2024.12.23"]
[EventType "team-tourn"]
[EventRounds "7"]
[EventCountry "GER"]
[SourceTitle "playchess.com"]
[Source "ChessBase"]
[SourceQuality "1"]
[TimeControl "40/5400+30:1800+30"]

1. d4 {[%emt 0:00:01]} d5 {[%emt 0:00:05]} 2. c4 {[%emt 0:00:05]} c6 {[%emt 0:00:05]} 3. Nf3 {[%emt 0:00:21]} Nf6 {[%emt 0:00:07]} 4. Nc3 {[%emt 0:01:22]} e6 {[%emt 0:00:33]} 5. Qd3 {[%emt 0:01:42]} Nbd7 {[%emt 0:05:35]} 6. g3 {[%emt 0:00:11]} Be7 {[%emt 0:03:39]} 7. Bg2 {[%emt 0:00:07]} O-O {[%emt 0:00:24]} 8. O-O {[%emt 0:00:25]} Re8 {[%emt 0:05:50]} 9. b3 {[%emt 0:05:00]} h6 {[%emt 0:04:24]} 10. Bb2 {[%emt 0:00:21]} b6 {[%emt 0:03:28]} 11. Rfe1 {[%emt 0:07:25]} Bb7 {[%emt 0:06:18]} 12. Nd2 {[%emt 0:04:46]} c5 {[%emt 0:08:15]} 13. cxd5 {[%emt 0:06:01]} Nxd5 {[%emt 0:03:48]} 14. Nxd5 {[%emt 0:01:51]} Bxd5 {[%emt 0:03:02]} 15. Bxd5 {[%emt 0:05:38]} exd5 {[%emt 0:00:45]} 16. Nf3 {[%emt 0:01:10]} Bf6 {[%emt 0:07:02]} 17. Rac1 {[%emt 0:11:04]} Qc7 {[%emt 0:12:27]} 18. Ba3 {[%emt 0:00:50]} Red8 {[%emt 0:04:23]} 19. Red1 {[%emt 0:09:18]} Rac8 {[%emt 0:09:09]} 20. dxc5 {[%emt 0:06:13]} Nxc5 {[%emt 0:00:32]} 21. Qf5 {[%emt 0:01:01]} Qb7 {[%emt 0:06:02]} 22. Rc2 {[%emt 0:13:53]} Ne6 {[%emt 0:03:26]} 23. Rxc8 {[%emt 0:01:22]} Qxc8 {[%emt 0:00:29]} 24. Rxd5 {[%emt 0:02:11]} Rxd5 {[%emt 0:00:07]} 25. Qxd5 {[%emt 0:00:04]} Qa6 {[%emt 0:00:45]} 26. Bd6 {[%emt 0:10:05]} Qxe2 {[%emt 0:00:41]} 27. a4 {[%emt 0:01:12]} g6 {[%emt 0:03:14]} 28. Kg2 {[%emt 0:00:28]} Qb2 {[%emt 0:01:51]} 29. Ne5 {[%emt 0:02:13]} Qd4 {[%emt 0:03:29]} 30. Qxd4 {[%emt 0:03:10]} Nxd4 {[%emt 0:00:02]} 31. Nd7 {[%emt 0:01:44]} Bd8 {[%emt 0:02:03]} 32. b4 {[%emt 0:00:33]} a5 {[%emt 0:01:41]} 33. b5 {[%emt 0:00:37]} Ne2 {[%emt 0:02:05]} 34. Be5 {[%emt 0:00:10]} Nc1 {[%emt 0:00:53]} 35. Bd4 {[%emt 0:01:40]} Na2 {[%emt 0:00:34]} 36. Nxb6 {[%emt 0:01:10]} Nc3 {[%emt 0:00:30]} 37. Bxc3 {[%emt 0:01:45]} Bxb6 {[%emt 0:00:07]} 38. Kf3 {[%emt 0:00:07]} f5 {[%emt 0:00:37]} 39. Kf4 {[%emt 0:00:06]} Bc7+ {[%emt 0:00:16]} 40. Ke3 {[%emt 0:00:41]} Kf7 {[%emt 0:01:10]} 41. Kd4 {[%emt 0:30:22]} Bb6+ {[%emt 0:01:52]} 42. Kd5 {[%emt 0:00:00]} Bxf2 {[%emt 0:00:20]} 43. Bxa5 {[%emt 0:00:00]} Bg1 {[%emt 0:00:10]} 44. h4 {[%emt 0:02:30]} g5 {[%emt 0:02:10]} 45. b6 {[%emt 0:00:00]} gxh4 {[%emt 0:01:09]} 46. b7 {[%emt 0:00:00]} Ba7 {[%emt 0:01:06]} 47. gxh4 {[%emt 0:00:00]} Bb8 {[%emt 0:02:19]} 48. Bb6 {[%emt 0:00:00]} Kg6 {[%emt 0:00:53]} 49. a5 {[%emt 0:00:00]} f4 {[%emt 0:00:10]} 50. a6 {[%emt 0:00:00]} 1-0

[Event "DVM U14 2024"]
[Site "Heidelberg"]
[Date "2024.12.28"]
[Round "3"]
[White "Klein, Levent"]
[Black "Rodriguez Klasen, Ennio"]
[Result "1-0"]
[ECO "D05"]
[WhiteElo "1985"]
[BlackElo "1870"]
[Annotator "RC"]
[PlyCount "97"]
[EventDate "2024.12.23"]
[EventType "team-tourn"]
[EventRounds "7"]
[EventCountry "GER"]
[SourceTitle "playchess.com"]
[Source "ChessBase"]
[SourceQuality "1"]
[TimeControl "40/5400+30:1800+30"]

1. d4 {[%emt 0:00:01]} Nf6 {[%emt 0:00:07]} 2. Nf3 {[%emt 0:00:04]} c5 {[%emt 0:00:06]} 3. e3 {[%emt 0:00:55]} e6 {[%emt 0:01:12]} 4. Be2 {[%emt 0:00:13]} Be7 {[%emt 0:01:23]} 5. O-O {[%emt 0:00:07]} O-O {[%emt 0:00:10]} 6. b3 {[%emt 0:00:03]} d5 {[%emt 0:12:43]} 7. Bb2 {[%emt 0:00:27]} Nc6 {[%emt 0:04:29]} 8. Nbd2 {[%emt 0:00:43]} cxd4 {[%emt 0:11:41]} 9. Nxd4 {[%emt 0:02:25]} Nxd4 {[%emt 0:03:41]} 10. Bxd4 {[%emt 0:01:15]} Qc7 {[%emt 0:02:55]} 11. c4 {[%emt 0:05:47]} Rd8 {[%emt 0:06:17]} 12. Rc1 {[%emt 0:03:54]} dxc4 {[%emt 0:10:44]} 13. Nxc4 {[%emt 0:02:08]} Qd7 {[%emt 0:11:18]} 14. Qc2 {[%emt 0:07:56]} Qe8 {[%emt 0:04:23]} 15. Ne5 {[%emt 0:05:47]} Bd7 {[%emt 0:04:05]} 16. Nxd7 {[%emt 0:01:53]} Qxd7 {[%emt 0:00:51]} 17. Qb2 {[%emt 0:10:18]} Rdc8 {[%emt 0:08:08]} 18. Rxc8+ {[%emt 0:02:44]} Qxc8 {[%emt 0:00:38]} 19. Bf3 {[%emt 0:01:38]} Qd7 {[%emt 0:01:23]} 20. Rc1 {[%emt 0:02:55]} Rc8 {[%emt 0:04:40]} 21. Rxc8+ {[%emt 0:07:59]} Qxc8 {[%emt 0:00:01]} 22. Bxa7 {[%emt 0:01:56]} b5 {[%emt 0:02:19]} 23. Bd4 {[%emt 0:01:15]} b4 {[%emt 0:00:39]} 24. h3 {[%emt 0:00:44]} h6 {[%emt 0:00:17]} 25. g4 {[%emt 0:05:34]} Ne8 {[%emt 0:03:04]} 26. Qd2 {[%emt 0:04:46]} Qc7 {[%emt 0:01:33]} 27. Bb2 {[%emt 0:02:40]} Nf6 {[%emt 0:01:26]} 28. Qc1 {[%emt 0:04:17]} Qa7 {[%emt 0:01:16]} 29. Qc8+ {[%emt 0:04:34]} Kh7 {[%emt 0:00:08]} 30. Qb7 {[%emt 0:01:07]} Qxb7 {[%emt 0:02:45]} 31. Bxb7 {[%emt 0:00:08]} Nd5 {[%emt 0:01:05]} 32. Bxd5 {[%emt 0:00:52]} exd5 {[%emt 0:00:01]} 33. Kf1 {[%emt 0:02:10]} g6 {[%emt 0:00:47]} 34. Ke2 {[%emt 0:00:39]} f5 {[%emt 0:00:40]} 35. gxf5 {[%emt 0:02:06]} gxf5 {[%emt 0:00:03]} 36. Be5 {[%emt 0:02:48]} Kg6 {[%emt 0:00:49]} 37. Kd3 {[%emt 0:01:11]} Bc5 {[%emt 0:00:34]} 38. Bd4 {[%emt 0:03:24]} Bd6 {[%emt 0:00:18]} 39. Bb6 {[%emt 0:00:54]} Kf6 {[%emt 0:00:34]} 40. Kd4 {[%emt 0:05:08]} Ke6 {[%emt 0:00:45]} 41. Bc5 {[%emt 0:33:15]} Be5+ {[%emt 0:07:32]} 42. Kd3 {[%emt 0:00:00]} f4 {[%emt 0:01:36]} 43. exf4 {[%emt 0:00:00]} Bxf4 {[%emt 0:00:59]} 44. Bxb4 {[%emt 0:00:00]} Bb8 {[%emt 0:04:40]} 45. Bd2 {[%emt 0:00:00]} h5 {[%emt 0:00:15]} 46. a4 {[%emt 0:00:00]} Kd7 {[%emt 0:02:36]} 47. Be3 {[%emt 0:00:00]} Bd6 {[%emt 0:00:45]} 48. a5 {[%emt 0:00:00]} Kc6 {[%emt 0:00:47]} 49. a6 {[%emt 0:00:02]} 1-0

[Event "DVM U14 2024"]
[Site "Heidelberg"]
[Date "2024.12.28"]
[Round "3"]
[White "Retzlaff, Kian"]
[Black "Schriefer, Leo Hans"]
[Result "1-0"]
[ECO "B38"]
[WhiteElo "1826"]
[BlackElo "1477"]
[Annotator "NA RC"]
[PlyCount "55"]
[EventDate "2024.12.23"]
[EventType "team-tourn"]
[EventRounds "7"]
[EventCountry "GER"]
[SourceTitle "playchess.com"]
[Source "ChessBase"]
[SourceQuality "1"]
[TimeControl "40/5400+30:1800+30"]

1. e4 {[%emt 0:00:02]} c5 {[%emt 0:00:02]} 2. Nf3 {[%emt 0:00:06]} g6 {[%emt 0:00:04]} 3. d4 {[%emt 0:00:05]} cxd4 {[%emt 0:00:08]} 4. Nxd4 {[%emt 0:00:02]} Nc6 {[%emt 0:00:27]} 5. c4 {[%emt 0:00:16]} Nf6 {[%emt 0:00:07]} 6. Nc3 {[%emt 0:00:06]} Bg7 {[%emt 0:00:20]} 7. Be3 {[%emt 0:00:37]} d6 {[%emt 0:00:22]} 8. Be2 {[%emt 0:00:17]} O-O {[%emt 0:00:21]} 9. O-O {[%emt 0:00:07]} Bd7 {[%emt 0:02:04]} 10. Qd2 {[%emt 0:00:09]} Re8 {[%emt 0:00:51]} 11. f3 {[%emt 0:03:05]} b6 {[%emt 0:03:27]} 12. Rfd1 {[%emt 0:04:21]} Rc8 {[%emt 0:02:44]} 13. Rac1 {[%emt 0:03:55]} Nxd4 {[%emt 0:02:08]} 14. Bxd4 {[%emt 0:00:59]} Bc6 {[%emt 0:00:59]} 15. b3 {[%emt 0:04:14]} Qd7 {[%emt 0:06:41]} 16. Kh1 {[%emt 0:13:13]} Rc7 {[%emt 0:01:50]} 17. Nd5 {[%emt 0:14:10]} Nxd5 {[%emt 0:02:35]} 18. cxd5 {[%emt 0:04:30]} Bb7 {[%emt 0:00:16]} 19. Bb5 {[%emt 0:00:53]} Qxb5 {[%emt 0:06:57]} 20. Rxc7 {[%emt 0:00:26]} Qa6 {[%emt 0:00:41]} 21. Bxg7 {[%emt 0:00:48]} Kxg7 {[%emt 0:00:07]} 22. Rdc1 {[%emt 0:01:00]} f6 {[%emt 0:01:17]} 23. Qb4 {[%emt 0:01:07]} Kf8 {[%emt 0:01:02]} 24. Qa4 {[%emt 0:01:19]} Qxa4 {[%emt 0:02:40]} 25. bxa4 {[%emt 0:00:03]} Rb8 {[%emt 0:01:12]} 26. Rd7 {[%emt 0:00:09]} Rc8 {[%emt 0:01:11]} 27. Rxc8+ {[%emt 0:00:06]} Bxc8 {[%emt 0:00:08]} 28. Rd8+ {[%emt 0:00:01]} 1-0

[Event "DVM U14 2024"]
[Site "Heidelberg"]
[Date "2024.12.28"]
[Round "3"]
[White "Arne, Jonas"]
[Black "Freude, Paul"]
[Result "1/2-1/2"]
[ECO "B24"]
[WhiteElo "1823"]
[BlackElo "1714"]
[Annotator "NA RC"]
[PlyCount "52"]
[EventDate "2024.12.23"]
[EventType "team-tourn"]
[EventRounds "7"]
[EventCountry "GER"]
[SourceTitle "playchess.com"]
[Source "ChessBase"]
[SourceQuality "1"]
[TimeControl "40/5400+30:1800+30"]

1. e4 {[%emt 0:00:02]} c5 {[%emt 0:00:10]} 2. Nc3 {[%emt 0:00:04]} d6 {[%emt 0:00:08]} 3. Nge2 {[%emt 0:00:08]} Nc6 {[%emt 0:01:02]} 4. g3 {[%emt 0:00:13]} g6 {[%emt 0:00:06]} 5. Bg2 {[%emt 0:00:08]} Bg7 {[%emt 0:00:05]} 6. O-O {[%emt 0:00:22]} Nf6 {[%emt 0:02:25]} 7. f4 {[%emt 0:00:50]} O-O {[%emt 0:01:13]} 8. h3 {[%emt 0:00:34]} a6 {[%emt 0:12:42]} 9. d3 {[%emt 0:00:18]} Qc7 {[%emt 0:01:55]} 10. a4 {[%emt 0:00:25]} Rb8 {[%emt 0:01:50]} 11. g4 {[%emt 0:00:16]} Nd4 {[%emt 0:04:42]} 12. Ng3 {[%emt 0:00:40]} e6 {[%emt 0:05:25]} 13. Be3 {[%emt 0:05:16]} Ne8 {[%emt 0:03:54]} 14. Kh2 {[%emt 0:16:07]} f5 {[%emt 0:03:37]} 15. exf5 {[%emt 0:05:49]} exf5 {[%emt 0:01:11]} 16. Nd5 {[%emt 0:01:14]} Qd8 {[%emt 0:00:45]} 17. c3 {[%emt 0:00:53]} Nc6 {[%emt 0:01:40]} 18. g5 {[%emt 0:07:55]} Be6 {[%emt 0:02:31]} 19. Ne2 {[%emt 0:05:20]} Nc7 {[%emt 0:02:39]} 20. Nxc7 {[%emt 0:01:39]} Qxc7 {[%emt 0:00:05]} 21. d4 {[%emt 0:01:35]} Ne7 {[%emt 0:02:44]} 22. d5 {[%emt 0:16:23]} Bf7 {[%emt 0:00:24]} 23. Qd2 {[%emt 0:04:12]} Rbe8 {[%emt 0:04:44]} 24. c4 {[%emt 0:04:38]} Nc8 {[%emt 0:01:15]} 25. Nc3 {[%emt 0:06:11]} Re7 {[%emt 0:06:50]} 26. Rfe1 {[%emt 0:06:58]} Rfe8 {[%emt 0:02:43]} 1/2-1/2

[Event "DVM U14 2024"]
[Site "Heidelberg"]
[Date "2024.12.28"]
[Round "3"]
[White "Pflug, Anton"]
[Black "Ahryzkov, Ivan"]
[Result "0-1"]
[ECO "B79"]
[WhiteElo "1812"]
[BlackElo "1813"]
[Annotator "NA RC"]
[PlyCount "120"]
[EventDate "2024.12.23"]
[EventType "team-tourn"]
[EventRounds "7"]
[EventCountry "GER"]
[SourceTitle "playchess.com"]
[Source "ChessBase"]
[SourceQuality "1"]
[TimeControl "40/5400+30:1800+30"]

1. e4 {[%emt 0:00:03]} c5 {[%emt 0:00:06]} 2. Nf3 {[%emt 0:00:03]} d6 {[%emt 0:00:06]} 3. d4 {[%emt 0:00:04]} cxd4 {[%emt 0:00:03]} 4. Nxd4 {[%emt 0:00:05]} Nf6 {[%emt 0:00:04]} 5. Nc3 {[%emt 0:00:06]} g6 {[%emt 0:00:06]} 6. Be3 {[%emt 0:01:06]} Bg7 {[%emt 0:00:06]} 7. f3 {[%emt 0:00:58]} O-O {[%emt 0:00:19]} 8. Bc4 {[%emt 0:01:23]} Nc6 {[%emt 0:00:41]} 9. Bb3 {[%emt 0:00:45]} Bd7 {[%emt 0:00:40]} 10. Qd2 {[%emt 0:00:17]} Qa5 {[%emt 0:02:08]} 11. O-O-O {[%emt 0:10:02]} Rfc8 {[%emt 0:03:05]} 12. h4 {[%emt 0:01:55]} Ne5 {[%emt 0:01:12]} 13. h5 {[%emt 0:03:05]} b5 {[%emt 0:04:47]} 14. hxg6 {[%emt 0:01:52]} hxg6 {[%emt 0:00:10]} 15. Bh6 {[%emt 0:02:48]} Bh8 {[%emt 0:01:00]} 16. Bg5 {[%emt 0:01:31]} Bg7 {[%emt 0:40:19]} 17. f4 {[%emt 0:28:37]} Nc4 {[%emt 0:03:44]} 18. Bxc4 {[%emt 0:00:20]} Rxc4 {[%emt 0:00:49]} 19. Nb3 {[%emt 0:00:45]} Qc7 {[%emt 0:01:21]} 20. Bxf6 {[%emt 0:08:51]} Bxf6 {[%emt 0:01:12]} 21. Nd5 {[%emt 0:00:09]} Qc8 {[%emt 0:02:58]} 22. e5 {[%emt 0:02:26]} dxe5 {[%emt 0:01:20]} 23. fxe5 {[%emt 0:00:42]} Rxc2+ {[%emt 0:09:54]} 24. Qxc2 {[%emt 0:00:07]} Bg5+ {[%emt 0:00:03]} 25. Nd2 {[%emt 0:01:57]} Bf5 {[%emt 0:04:29]} 26. Qc4 {[%emt 0:05:16]} Rb8 27. Qxc8+ Rxc8+ {[%emt 0:00:35]} 28. Nc3 {[%emt 0:00:35]} b4 {[%emt 0:00:05]} 29. g4 {[%emt 0:00:22]} Bxg4 {[%emt 0:03:29]} 30. Rdg1 {[%emt 0:01:21]} bxc3 {[%emt 0:01:03]} 31. bxc3 {[%emt 0:00:44]} Bf3 {[%emt 0:02:40]} 32. Rh3 {[%emt 0:00:59]} Rxc3+ {[%emt 0:00:44]} 33. Kb2 {[%emt 0:00:05]} Bxd2 {[%emt 0:00:07]} 34. Rgg3 {[%emt 0:00:04]} Bg4 {[%emt 0:05:42]} 35. Rxc3 {[%emt 0:00:20]} Bxh3 {[%emt 0:00:06]} 36. Rxh3 {[%emt 0:00:06]} Bf4 {[%emt 0:00:05]} 37. e6 {[%emt 0:00:36]} f5 {[%emt 0:02:46]} 38. Kb3 {[%emt 0:00:33]} Kg7 {[%emt 0:02:14]} 39. Kc4 {[%emt 0:00:08]} Bc7 {[%emt 0:01:17]} 40. Ra3 {[%emt 0:03:45]} Bb6 {[%emt 0:00:13]} 41. Rf3 {[%emt 0:30:46]} Kf6 {[%emt 0:30:32]} 42. Kd5 {[%emt 0:00:04]} g5 {[%emt 0:00:00]} 43. Rh3 {[%emt 0:00:00]} Bc7 {[%emt 0:00:00]} 44. Ra3 {[%emt 0:00:00]} Bb6 {[%emt 0:00:00]} 45. Rh3 {[%emt 0:00:00]} Bc7 {[%emt 0:04:35]} 46. Ra3 {[%emt 0:00:00]} Bb8 {[%emt 0:00:00]} 47. Rb3 {[%emt 0:00:00]} Bd6 {[%emt 0:00:00]} 48. a4 {[%emt 0:00:00]} g4 {[%emt 0:00:00]} 49. a5 {[%emt 0:00:00]} g3 {[%emt 0:00:00]} 50. Rb2 {[%emt 0:00:00]} f4 {[%emt 0:00:00]} 51. Ke4 {[%emt 0:00:00]} Kxe6 {[%emt 0:00:00]} 52. a6 {[%emt 0:00:00]} Kf6 {[%emt 0:00:00]} 53. Kf3 {[%emt 0:00:00]} Kf5 {[%emt 0:00:00]} 54. Rb7 {[%emt 0:00:00]} e5 {[%emt 0:02:01]} 55. Rb5 {[%emt 0:00:00]} Ke6 {[%emt 0:00:47]} 56. Ra5 {[%emt 0:00:00]} Kf6 {[%emt 0:03:21]} 57. Rb5 {[%emt 0:00:00]} e4+ {[%emt 0:00:38]} 58. Kxe4 {[%emt 0:00:00]} g2 {[%emt 0:00:05]} 59. Rb1 {[%emt 0:00:00]} Bc5 {[%emt 0:00:05]} 60. Kxf4 {[%emt 0:00:00]} g1=Q {[%emt 0:00:06]} 0-1

[Event "DVM U14 2024"]
[Site "Heidelberg"]
[Date "2024.12.28"]
[Round "3"]
[White "Ollhoff, Hannes"]
[Black "Li, Yunqi"]
[Result "1/2-1/2"]
[ECO "D02"]
[WhiteElo "1801"]
[BlackElo "1990"]
[Annotator "NA RC"]
[PlyCount "66"]
[EventDate "2024.12.23"]
[EventType "team-tourn"]
[EventRounds "7"]
[EventCountry "GER"]
[SourceTitle "playchess.com"]
[Source "ChessBase"]
[SourceQuality "1"]
[TimeControl "40/5400+30:1800+30"]

1. d4 {[%emt 0:00:04]} Nf6 {[%emt 0:00:06]} 2. Nf3 {[%emt 0:00:20]} d5 {[%emt 0:00:07]} 3. c3 {[%emt 0:00:46]} c5 {[%emt 0:00:58]} 4. dxc5 {[%emt 0:01:16]} Nc6 {[%emt 0:01:14]} 5. b4 {[%emt 0:02:51]} e6 {[%emt 0:06:37]} 6. Be3 {[%emt 0:11:14]} Bd7 {[%emt 0:06:44]} 7. Nbd2 {[%emt 0:05:21]} Be7 {[%emt 0:11:50]} 8. g3 {[%emt 0:04:51]} Ng4 {[%emt 0:01:29]} 9. Bd4 {[%emt 0:04:09]} e5 {[%emt 0:10:27]} 10. b5 {[%emt 0:06:10]} Nxd4 {[%emt 0:00:30]} 11. cxd4 {[%emt 0:00:38]} exd4 {[%emt 0:03:13]} 12. Nb3 {[%emt 0:06:54]} Bxb5 {[%emt 0:07:41]} 13. Nfxd4 {[%emt 0:03:28]} Bc4 {[%emt 0:00:54]} 14. Qd2 {[%emt 0:03:53]} O-O {[%emt 0:07:03]} 15. Bh3 {[%emt 0:05:43]} Ne5 {[%emt 0:05:05]} 16. O-O {[%emt 0:06:15]} Bf6 {[%emt 0:05:18]} 17. Rab1 {[%emt 0:03:06]} Nc6 {[%emt 0:03:51]} 18. Nxc6 {[%emt 0:04:40]} bxc6 {[%emt 0:00:03]} 19. Bf5 {[%emt 0:02:16]} Qe7 {[%emt 0:01:50]} 20. Bd3 {[%emt 0:05:50]} Bxb3 {[%emt 0:05:48]} 21. Rxb3 {[%emt 0:00:27]} Qxc5 {[%emt 0:00:08]} 22. Rc1 {[%emt 0:00:43]} Qd6 {[%emt 0:06:24]} 23. Qc2 {[%emt 0:01:28]} g6 {[%emt 0:02:42]} 24. Qxc6 {[%emt 0:01:36]} Qxc6 {[%emt 0:00:31]} 25. Rxc6 {[%emt 0:00:08]} Bd4 {[%emt 0:00:36]} 26. e3 {[%emt 0:10:25]} Bb6 {[%emt 0:02:24]} 27. Rbc3 {[%emt 0:03:57]} d4 {[%emt 0:02:52]} 28. exd4 {[%emt 0:00:36]} Bxd4 {[%emt 0:01:58]} 29. Rc2 {[%emt 0:01:03]} Kg7 {[%emt 0:01:47]} 30. Rd6 {[%emt 0:02:09]} Rad8 {[%emt 0:00:56]} 31. Rxd8 {[%emt 0:01:07]} Rxd8 {[%emt 0:00:08]} 32. Bc4 {[%emt 0:01:04]} Bb6 {[%emt 0:01:09]} 33. Bb3 {[%emt 0:00:38]} Rd7 {[%emt 0:00:20]} 1/2-1/2

[Event "DVM U14 2024"]
[Site "Heidelberg"]
[Date "2024.12.28"]
[Round "3"]
[White "Fridlin, Daniel"]
[Black "Tran, Felix K H"]
[Result "1-0"]
[ECO "B13"]
[WhiteElo "1789"]
[BlackElo "1560"]
[Annotator "NA RC"]
[PlyCount "172"]
[EventDate "2024.12.23"]
[EventType "team-tourn"]
[EventRounds "7"]
[EventCountry "GER"]
[SourceTitle "playchess.com"]
[Source "ChessBase"]
[SourceQuality "1"]
[TimeControl "40/5400+30:1800+30"]

1. e4 {[%emt 0:00:03]} c6 {[%emt 0:00:10]} 2. d4 {[%emt 0:00:09]} d5 {[%emt 0:00:06]} 3. exd5 {[%emt 0:00:05]} cxd5 {[%emt 0:00:24]} 4. Bd3 {[%emt 0:00:07]} Nc6 {[%emt 0:01:21]} 5. c3 {[%emt 0:00:35]} e5 {[%emt 0:01:16]} 6. dxe5 {[%emt 0:03:53]} Nxe5 {[%emt 0:01:50]} 7. h3 {[%emt 0:03:25]} Bd6 {[%emt 0:03:48]} 8. Bb5+ {[%emt 0:03:34]} Bd7 {[%emt 0:03:55]} 9. Qxd5 {[%emt 0:03:07]} Bc6 {[%emt 0:03:03]} 10. Bxc6+ {[%emt 0:01:05]} bxc6 {[%emt 0:00:54]} 11. Qd1 {[%emt 0:02:27]} Nf6 {[%emt 0:01:55]} 12. Nf3 {[%emt 0:02:06]} Nxf3+ {[%emt 0:02:55]} 13. Qxf3 {[%emt 0:00:21]} Qc7 {[%emt 0:00:45]} 14. O-O {[%emt 0:01:04]} O-O {[%emt 0:02:46]} 15. Bg5 {[%emt 0:02:09]} Nd7 {[%emt 0:07:14]} 16. Nd2 {[%emt 0:03:20]} Rab8 {[%emt 0:04:28]} 17. b3 {[%emt 0:03:30]} h6 {[%emt 0:04:32]} 18. Be3 {[%emt 0:02:16]} Rfe8 {[%emt 0:07:49]} 19. Rfe1 {[%emt 0:03:57]} Re7 {[%emt 0:10:44]} 20. Bd4 {[%emt 0:02:39]} Rbe8 {[%emt 0:05:08]} 21. Rxe7 {[%emt 0:00:38]} Rxe7 {[%emt 0:01:34]} 22. Ne4 {[%emt 0:03:31]} Be5 {[%emt 0:09:00]} 23. Rd1 {[%emt 0:02:41]} Bxd4 {[%emt 0:06:01]} 24. Rxd4 {[%emt 0:00:37]} c5 {[%emt 0:01:03]} 25. Rd1 {[%emt 0:01:24]} Qe5 {[%emt 0:03:05]} 26. Nd6 {[%emt 0:03:24]} Qf6 {[%emt 0:03:47]} 27. Qd3 {[%emt 0:01:04]} Ne5 {[%emt 0:01:37]} 28. Qc2 {[%emt 0:03:01]} Rd7 {[%emt 0:01:56]} 29. Ne4 {[%emt 0:02:22]} Rxd1+ {[%emt 0:01:19]} 30. Qxd1 {[%emt 0:00:15]} Qc6 {[%emt 0:01:51]} 31. Qe2 {[%emt 0:01:29]} f5 {[%emt 0:00:57]} 32. Ng3 {[%emt 0:00:34]} Qf6 {[%emt 0:01:53]} 33. f4 {[%emt 0:00:46]} Ng6 {[%emt 0:00:40]} 34. Qc4+ {[%emt 0:01:29]} Kh7 {[%emt 0:01:08]} 35. Qxc5 {[%emt 0:01:16]} Nxf4 {[%emt 0:00:16]} 36. Kh2 {[%emt 0:02:05]} Kg6 {[%emt 0:01:26]} 37. Qe3 {[%emt 0:02:10]} Ne6 {[%emt 0:00:58]} 38. c4 {[%emt 0:02:54]} f4 {[%emt 0:00:52]} 39. Qd3+ {[%emt 0:00:19]} Kf7 {[%emt 0:00:44]} 40. Ne4 {[%emt 0:00:43]} Qg6 {[%emt 0:03:15]} 41. Nd6+ {[%emt 0:31:32]} Kf6 {[%emt 0:30:21]} 42. Qc3+ {[%emt 0:04:09]} Ke7 {[%emt 0:01:38]} 43. Nc8+ {[%emt 0:02:26]} Ke8 {[%emt 0:00:00]} 44. Nxa7 {[%emt 0:00:00]} Qf7 {[%emt 0:00:00]} 45. Nb5 {[%emt 0:00:00]} Qh5 {[%emt 0:00:00]} 46. Nd6+ {[%emt 0:00:00]} Kd7 {[%emt 0:00:00]} 47. Ne4 {[%emt 0:00:00]} Qe2 {[%emt 0:00:00]} 48. Nd2 {[%emt 0:00:00]} g5 {[%emt 0:00:00]} 49. c5 {[%emt 0:00:00]} Kc6 {[%emt 0:00:00]} 50. b4 {[%emt 0:00:00]} h5 {[%emt 0:03:30]} 51. a4 {[%emt 0:00:00]} g4 {[%emt 0:00:00]} 52. b5+ {[%emt 0:00:00]} Kb7 {[%emt 0:00:00]} 53. c6+ {[%emt 0:00:00]} Kc8 {[%emt 0:00:00]} 54. hxg4 {[%emt 0:00:00]} hxg4 {[%emt 0:00:00]} 55. Qh8+ {[%emt 0:00:00]} Kc7 {[%emt 0:00:00]} 56. Qh7+ {[%emt 0:00:00]} Kb6 {[%emt 0:00:00]} 57. Ne4 {[%emt 0:00:00]} f3 {[%emt 0:00:00]} 58. a5+ {[%emt 0:00:00]} Kxa5 {[%emt 0:00:00]} 59. Qa7+ {[%emt 0:00:00]} Kb4 {[%emt 0:00:00]} 60. Nf2 {[%emt 0:00:00]} Qe5+ {[%emt 0:02:35]} 61. g3 {[%emt 0:00:00]} Qe2 {[%emt 0:01:59]} 62. Qe7+ {[%emt 0:00:00]} Kxb5 {[%emt 0:00:51]} 63. Qb7+ {[%emt 0:00:00]} Kc5 {[%emt 0:00:30]} 64. Qa7+ {[%emt 0:00:00]} Kd6 {[%emt 0:00:14]} 65. Qb6 {[%emt 0:00:00]} Nc5 {[%emt 0:01:01]} 66. c7+ {[%emt 0:00:00]} Kd5 {[%emt 0:00:26]} 67. Qxc5+ {[%emt 0:00:00]} Kxc5 {[%emt 0:00:18]} 68. c8=Q+ {[%emt 0:00:07]} Kd4 {[%emt 0:00:30]} 69. Qd7+ {[%emt 0:00:00]} Kc3 {[%emt 0:01:06]} 70. Qg7+ {[%emt 0:00:00]} Kd2 {[%emt 0:00:20]} 71. Qb2+ {[%emt 0:00:15]} Ke3 {[%emt 0:00:28]} 72. Qb6+ {[%emt 0:03:32]} Kd2 {[%emt 0:00:10]} 73. Qc5 {[%emt 0:05:59]} Qe3 {[%emt 0:01:30]} 74. Qxe3+ {[%emt 0:00:49]} Kxe3 {[%emt 0:00:07]} 75. Nxg4+ {[%emt 0:00:14]} Ke2 {[%emt 0:00:43]} 76. Kh3 {[%emt 0:00:44]} Kd3 {[%emt 0:00:40]} 77. Ne5+ {[%emt 0:00:09]} Ke4 {[%emt 0:00:10]} 78. Nxf3 {[%emt 0:00:11]} Kxf3 {[%emt 0:00:50]} 79. Kh4 {[%emt 0:00:04]} Ke4 {[%emt 0:00:11]} 80. g4 {[%emt 0:00:12]} Ke5 {[%emt 0:00:02]} 81. Kh5 {[%emt 0:00:10]} Kf6 {[%emt 0:00:17]} 82. Kh6 {[%emt 0:00:09]} Kf7 {[%emt 0:00:20]} 83. g5 {[%emt 0:00:52]} Kg8 {[%emt 0:00:49]} 84. Kg6 {[%emt 0:00:17]} Kf8 {[%emt 0:00:25]} 85. Kh7 {[%emt 0:00:04]} Kf7 {[%emt 0:00:07]} 86. g6+ {[%emt 0:00:03]} Ke8 {[%emt 0:00:21]} 1-0